Cogmind - Beta 11.1 @@@ ROGUE MODE // 2022.09.11 @ 20:28:46 Player: PieTheDye Result: Destroyed by G-47 Trooper with Particle Gun Performance ------------- Evolutions (2) 1000 Regions Visited (6) 1200 Robots Destroyed (46) 230 Value Destroyed (1336) 1336 Prototype IDs (0) 0 Alien Tech Used (0) 0 Bonus (316) 316 TOTAL SCORE: 4082 Bonus ------- High Alert Combat Kills 116 Entered Garrisons 200 Cogmind --------- Core Integrity 0/550 Matter 214/300 Energy 99/100 System Corruption 57% Temperature Cool (9) Movement Core (100) Ox1 Location -8/Materials Parts ------- > --- POWER (2) -------- (None) > --- PROPULSION (3) --- (None) > --- UTILITY (3) ------ Improved Signal Interpreter Improved Signal Interpreter Improved Signal Interpreter > --- WEAPON (3) ------- Heavy Particle Cannon > --- INVENTORY (5) ---- Advanced Treads Peak State ------------ > --- POWER ------------ Light Nuclear Core > --- PROPULSION ------- Aluminum Leg Carbon-fiber Leg Carbon-fiber Leg > --- UTILITY ---------- Layered Light Armor Plating Layered Light Armor Plating Shock Absorption System > --- WEAPON ----------- Proton Missile Launcher > --- INVENTORY -------- Relay Coupler [Demolisher] Proton Missile Launcher Proton Missile Launcher [Rating: 27] Favorites ----------- Power Ion Engine Engine Ion Engine Power Core Light Nuclear Core Propulsion Aluminum Leg Treads Light Treads Leg Aluminum Leg Utility Layered Light Armor Plating Device Shock Absorption System Processor Improved Signal Interpreter Protection Layered Light Armor Plating Weapon Proton Missile Launcher Energy Cannon Heavy Particle Cannon Ballistic Gun Assault Rifle Launcher Proton Missile Launcher Special Weapon Mining Laser Build | -11 -10 -9 -9 -8 -8 -8 ------- Run | Scr Mat Mat Min Mat Gar Mat Slots Evolved 4 | . . 2 . 2 . . Power 1 | . . . . 1 . . Propulsion 1 | . . 1 . . . . Utility 1 | . . 1 . . . . Weapon 1 | . . . . 1 . . Parts Attached 50 | 9 5 7 7 6 11 5 Power 4 | 1 . . . . 3 . Engine 2 | 1 . . . . 1 . Core 2 | . . . . . 2 . Reactor . | . . . . . . . Propulsion 14 | 6 . . 2 . 5 1 Treads 5 | 4 . . . . . 1 Leg 9 | 2 . . 2 . 5 . Wheel . | . . . . . . . Hover . | . . . . . . . Flight . | . . . . . . . Utility 10 | . 3 . 1 3 . 3 Device 1 | . . . . 1 . . Storage . | . . . . . . . Processor 3 | . . . . . . 3 Hackware . | . . . . . . . Protection 6 | . 3 . 1 2 . . Artifact . | . . . . . . . Weapon 22 | 2 2 7 4 3 3 1 Energy Gun . | . . . . . . . Energy Cannon 1 | . . . . . . 1 Ballistic Gun 9 | 2 1 4 2 . . . Ballistic Cannon . | . . . . . . . Launcher 9 | . . 2 2 3 2 . Special Weapon 3 | . 1 1 . . 1 . Impact Weapon . | . . . . . . . Slashing Weapon . | . . . . . . . Piercing Weapon . | . . . . . . . Special Melee Weapon . | . . . . . . . Unidentified Prototypes . | . . . . . . . Corrupted Parts 6 | . . . . . 6 . System Corruption 53 | . . . . . 53 . Parts Lost 19 | . 2 . 5 . 12 . Power 4 | . . . 1 . 3 . Propulsion 5 | . . . 3 . 2 . Utility 6 | . 2 . 1 . 3 . Weapon 4 | . . . . . 4 . Highest Loss Streak 7 | . 2 . 4 . 7 . To Critical Strikes . | . . . . . . . Average Slot Usage (%) 60 | . 92 64 43 56 60 30 Engine 3 | . 14 11 1 . . . Core 2 | . . . . . 6 . Leg 18 | . 28 22 12 9 20 . Device 2 | . . . . 8 4 . Processor 1 | . . . . . . 22 Protection 13 | . 21 11 7 16 16 . Ballistic Gun 9 | . 23 18 17 5 . . Launcher 6 | . . 1 4 16 11 . Naked Turns 46 | . . . . . 31 15 Heaviest Build 32 | 9 23 15 15 32 32 6 Greatest Support 40 | 40 20 20 20 10 40 3 Greatest Overweight (x) 3 | 2 1 . 1 3 3 1 Average Overweight (x) . | . . . . 2 . . Largest Inventory Capacity 5 | 5 5 5 5 5 5 5 Average Capacity 5 | 5 5 5 5 5 5 5 Most Carried 5 | 5 3 5 5 5 4 2 Average Carried 1 | . 1 2 2 1 2 . Final Capacity 5 | 5 5 5 5 5 5 5 Final Carried 3 | 1 1 3 2 1 1 1 Class Distribution -------------------- 68% | Mutant 22% | Scavenger-Mutant 9% | Tank Dominant Class ---------------- Mutant | -10/Materials Mutant | -9/Materials Mutant | -9/Mines Tank | -8/Materials Scavenger-Mutant | -8/Garrison Mutant | -8/Materials Resources | -11 -10 -9 -9 -8 -8 -8 ----------- Run | Scr Mat Mat Min Mat Gar Mat Matter Collected 1220 | 358 61 83 235 . 483 . Remotely . | . . . . . . . Salvage Created 1731 | 232 61 107 311 . 1020 . Parts 94 | 19 4 10 15 . 46 . Haulers Intercepted . | . . . . . . . Recyclers Shooed . | . . . . . . . Parts Field Recycled . | . . . . . . . Retrieved Matter . | . . . . . . . Parts Self-Destructed . | . . . . . . . Prevented . | . . . . . . . Kills | -11 -10 -9 -9 -8 -8 -8 ------- Run | Scr Mat Mat Min Mat Gar Mat Combat Hostiles Destroyed 33 | . 2 5 11 . 15 . Guns 7 | . 2 1 4 . . . AOE 26 | . . 4 7 . 15 . Classes Destroyed 8 | 3 1 2 2 . . . Worker 4 | 2 1 . 1 . . . Tunneler 6 | 6 . . . . . . Recycler 3 | 1 . 1 1 . . . Swarmer 11 | . . 4 3 . 4 . Grunt 17 | . 2 . 6 . 9 . Brawler 1 | . . . 1 . . . Duelist 1 | . . . 1 . . . Sentry 3 | . . 1 . . 2 . Best Kill Streak 6 | 3 3 5 6 . 4 . Combat Bots Only 6 | . 2 4 6 . 4 . Max Kills in Single Turn 5 | 1 2 5 3 . 2 . Gunslinging . | . . . . . . . Exploded 4 | . . 4 3 . 2 . Melee . | . . . . . . . Uniques/NPCs Destroyed . | . . . . . . . Combat | -11 -10 -9 -9 -8 -8 -8 -------- Run | Scr Mat Mat Min Mat Gar Mat Damage Taken 2791 | . 411 341 372 . 1583 84 Core 742 | . 35 43 105 . 493 66 Absorbed by Shields . | . . . . . . . Redirected to Shielding 1 | . . . 1 . . . Core Remaining (%) 83 | 100 86 . 63 . . . Volleys Fired 99 | 17 12 14 16 . 39 1 Largest 2 | 2 2 2 2 . 2 1 Hottest 120 | 40 120 100 56 . 78 75 Shots Fired 156 | 34 22 23 31 . 45 1 Gun 90 | 34 17 18 21 . . . Cannon 1 | . . . . . . 1 Launcher 59 | . . 4 10 . 45 . Special 6 | . 5 1 . . . . Kinetic 90 | 34 17 18 21 . . . Thermal 7 | . 5 1 . . . 1 Explosive 14 | . . 4 10 . . . Electromagnetic 45 | . . . . . 45 . Robot Hit Streak 13 | 5 11 13 10 . 10 3 Robot Miss Streak 4 | 4 3 2 1 . 4 . Penetration Max . | . . . . . . . Secondary Targets 1 | . 1 . . . . . Max Gunslinging Chain 1 | . 1 . . . . . Shots Hit Robots 83 | 14 15 16 24 . 13 1 Core Hits 78 | 10 7 10 22 . 29 . Critical Kills . | . . . . . . . Critical Parts Destroyed . | . . . . . . . Critical Strikes . | . . . . . . . Melee Attacks . | . . . . . . . Impact . | . . . . . . . Slashing . | . . . . . . . Piercing . | . . . . . . . Sneak Attacks . | . . . . . . . Combat Hostiles . | . . . . . . . Follow-up Attacks . | . . . . . . . Damage Inflicted 3730 | 188 246 447 1176 . 1648 25 Guns 766 | 188 172 171 235 . . . Cannons 25 | . . . . . . 25 Explosions 2806 | . . 250 927 . 1629 . Melee . | . . . . . . . Ramming 35 | . 2 . 14 . 19 . Kinetic 766 | 188 172 171 235 . . . Thermal 130 | . 72 26 . . 7 25 Explosive 1177 | . . 250 927 . . . Electromagnetic 1622 | . . . . . 1622 . Impact . | . . . . . . . Slashing . | . . . . . . . Piercing . | . . . . . . . Highest Corruption 57 | . . . . . 57 57 Average Corruption 41 | . . . . . 38 57 Corruption Purged . | . . . . . . . Corruption Blocked . | . . . . . . . Effects 51 | . . . . . 45 6 Message Errors 8 | . . . . . 7 1 Matter Fused 4 | . . . . . 4 . Heat Flow Errors 5 | . . . . . 3 2 Energy Discharges 7 | . . . . . 6 1 Parts Rejected 2 | . . . . . 2 . Data Loss (minor) 5 | . . . . . 4 1 Data Loss (major) 1 | . . . . . 1 . Misfires 2 | . . . . . 2 . Alerts 3 | . . . . . 3 . Misdirections 11 | . . . . . 10 1 Weapon Failures 3 | . . . . . 3 . Overload Shots . | . . . . . . . Overflow Damage 45 | . . . 41 . 4 . Projectiles . | . . . . . . . Explosions 45 | . . . 41 . 4 . Melee . | . . . . . . . Knockbacks 1 | . . . 1 . . . Impact 1 | . . . 1 . . . Kinetic . | . . . . . . . Secondary . | . . . . . . . Self-Inflicted Damage 389 | . . 64 104 . 221 . Shots 21 | . . 4 3 . 14 . Rammed 4 | . . . . . 4 . Targets Rammed 11 | . 4 . 3 . 4 . Kicked 7 | . 4 . 3 . . . Crushed . | . . . . . . . Highest Temperature 419 | . 419 20 18 . 174 247 Average Temperature 79 | . 231 5 8 . 32 95 Received Heat Transfer 1173 | . 267 72 132 . 657 45 Effects 2 | . 2 . . . . . Shutdowns 1 | . 1 . . . . . Matter Decay 1 | . 1 . . . . . Siege Activations . | . . . . . . . Robots Corrupted 3 | . . . . . 3 . Combat Hostiles . | . . . . . . . Parts Fried 7 | . . . . . 7 . Impact Corruptions . | . . . . . . . Robots Melted . | . . . . . . . Combat Hostiles . | . . . . . . . Parts Melted . | . . . . . . . Heat Transferred 287 | . 150 50 . . 50 37 Parts Sabotaged . | . . . . . . . Parts Stolen . | . . . . . . . Parts Stripped . | . . . . . . . Power Chain Reactions 4 | . . . . . 4 . Missiles Intercepted . | . . . . . . . Alert | -11 -10 -9 -9 -8 -8 -8 ------- Run | Scr Mat Mat Min Mat Gar Mat Peak Influence 885 | 45 67 309 583 230 885 430 Initial 430 | . 29 27 120 226 149 430 Average 284 | 17 37 151 335 226 452 430 Maximum Alert Level 3 | . . 1 2 1 3 2 Low Security (%) 39 | 100 100 66 11 . 17 . Level 1 31 | . . 33 57 100 31 . Level 2 22 | . . . 30 . 33 100 Level 3 6 | . . . . . 16 . Level 4 . | . . . . . . . Level 5 . | . . . . . . . High Security . | . . . . . . . Max Security . | . . . . . . . Squads Dispatched 4 | . . 3 . . . 1 Investigation 1 | . . 1 . . . . Extermination . | . . . . . . . Reinforcement 3 | . . 2 . . . 1 Assault . | . . . . . . . Garrison . | . . . . . . . Intercept . | . . . . . . . Searches Triggered . | . . . . . . . Construction Impeded . | . . . . . . . Haulers Reinforced . | . . . . . . . Active Scanning Responses . | . . . . . . . Cargo Convoy Interrupts . | . . . . . . . Stealth | -11 -10 -9 -9 -8 -8 -8 --------- Run | Scr Mat Mat Min Mat Gar Mat Distress Signals . | . . . . . . . Communications Jammed . | . . . . . . . Distress Signals . | . . . . . . . Times Spotted 67 | . 3 10 11 . 40 3 Peak Tracking Total 6 | . 2 5 6 . 6 2 Tactical Retreats 12 | . . 1 1 . 10 . Traps | -11 -10 -9 -9 -8 -8 -8 ------- Run | Scr Mat Mat Min Mat Gar Mat Traps Triggered 5 | . . . . . 5 . Indirectly 4 | . . . . . 4 . Trap Hack Attempts . | . . . . . . . Triggered . | . . . . . . . Disarmed . | . . . . . . . Reprogrammed . | . . . . . . . Reused . | . . . . . . . Traps Extracted . | . . . . . . . Installed . | . . . . . . . Triggered . | . . . . . . . Machines | -11 -10 -9 -9 -8 -8 -8 ---------- Run | Scr Mat Mat Min Mat Gar Mat Machines Disabled 3 | . . . 1 . 2 . Max in Single Turn 1 | . . . 1 . 1 . Garrison Relay 1 | . . . . . 1 . Machines Sabotaged . | . . . . . . . Garrisons Compromised . | . . . . . . . Overloaded Fab Kills . | . . . . . . . Hacking | -11 -10 -9 -9 -8 -8 -8 --------- Run | Scr Mat Mat Min Mat Gar Mat Machines Accessed 6 | . 3 1 . 2 . . Terminals 5 | . 3 1 . 1 . . Fabricators . | . . . . . . . Repair Stations . | . . . . . . . Recycling Units . | . . . . . . . Scanalyzers . | . . . . . . . Garrison Access 1 | . . . . 1 . . Total Hacks 12 | . 4 6 . 2 . . Successful 9 | . 3 4 . 2 . . Failed 2 | . 1 1 . . . . Catastrophic 1 | . . 1 . . . . Database Lockouts 1 | . . 1 . . . . Manual . | . . . . . . . Terminals 11 | . 4 6 . 1 . . Fabricators . | . . . . . . . Repair Stations . | . . . . . . . Recycling Units . | . . . . . . . Scanalyzers . | . . . . . . . Garrison Access 1 | . . . . 1 . . Terminal Hacks 8 | . 3 4 . 1 . . Record 5 | . 1 4 . . . . Robot Analysis 2 | . 2 . . . . . Zone Layout 1 | . . . . 1 . . Fabricator Hacks . | . . . . . . . Repair Station Hacks . | . . . . . . . Recycling Unit Hacks . | . . . . . . . Scanalyzer . | . . . . . . . Garrison Access Hacks 1 | . . . . 1 . . Unlock Access 1 | . . . . 1 . . Unauthorized Hacks . | . . . . . . . Terminals . | . . . . . . . Fabricators . | . . . . . . . Repair Stations . | . . . . . . . Recycling Units . | . . . . . . . Scanalyzers . | . . . . . . . Garrison Access . | . . . . . . . Data Cores Recovered . | . . . . . . . Used . | . . . . . . . Hacking Detections 5 | . 2 1 . 2 . . Full Trace Events 1 | . . 1 . . . . Feedback Events . | . . . . . . . Feedback Blocked . | . . . . . . . Robot Schematics Acquired . | . . . . . . . Robots Built . | . . . . . . . Authchips . | . . . . . . . Time . | . . . . . . . Total Robot Build Rating . | . . . . . . . Part Schematics Acquired . | . . . . . . . Parts Built . | . . . . . . . Authchips . | . . . . . . . Time . | . . . . . . . Total Part Build Rating . | . . . . . . . Parts Repaired . | . . . . . . . Time . | . . . . . . . Parts Recycled . | . . . . . . . Recycled Matter . | . . . . . . . Retrieved Matter . | . . . . . . . Retrieved Components . | . . . . . . . Parts Scanalyzed . | . . . . . . . Part Schematics Acquired . | . . . . . . . Parts Damaged . | . . . . . . . Bothacking | -11 -10 -9 -9 -8 -8 -8 ------------ Run | Scr Mat Mat Min Mat Gar Mat Used RIF Installer . | . . . . . . . Robots Hacked . | . . . . . . . Non-combat . | . . . . . . . Combat . | . . . . . . . Robot Hacks Applied . | . . . . . . . Relay Couplers Released 4 | . . . . . 4 . Machine Destruction 4 | . . . . . 4 . Fabnet Peak Effective % . | . . . . . . . Robots Rewired . | . . . . . . . Allies Hacked . | . . . . . . . Hacks Repelled . | . . . . . . . Allies | -11 -10 -9 -9 -8 -8 -8 -------- Run | Scr Mat Mat Min Mat Gar Mat Total Allies . | . . . . . . . Largest Group . | . . . . . . . Highest-Rated Group . | . . . . . . . Highest-Rated Ally . | . . . . . . . Total Orders . | . . . . . . . Ally Attacks . | . . . . . . . Total Damage . | . . . . . . . Kills . | . . . . . . . Allies Corrupted . | . . . . . . . Allies Melted . | . . . . . . . Intel | -11 -10 -9 -9 -8 -8 -8 ------- Run | Scr Mat Mat Min Mat Gar Mat Robot Analysis Total 2 | . 2 . . . . . Derelict Logs Recovered 1 | . . . 1 . . . Drone Launches . | . . . . . . . Drone Recoveries . | . . . . . . . Exploration | -11 -10 -9 -9 -8 -8 -8 ------------- Run | Scr Mat Mat Min Mat Gar Mat Turns Passed 1932 | 225 235 206 294 136 725 111 Spaces Moved 1063 | 85 106 128 193 41 401 109 Core 188 | 14 . . 14 . 51 109 Treads 34 | 34 . . . . . . Legs 841 | 37 106 128 179 41 350 . Wheels . | . . . . . . . Hover . | . . . . . . . Flight . | . . . . . . . Fastest Speed 50 | 50 120 120 100 120 50 50 Average Speed 129 | 125 158 120 118 263 128 88 Slowest Speed 330 | 160 190 120 190 330 330 100 Overloaded Moves . | . . . . . . . Propulsion Burnouts . | . . . . . . . Robots Hopped . | . . . . . . . Cave-ins Triggered . | . . . . . . . Exploration Rate (%) 24 | 4 24 13 44 4 69 16 Regions Visited 6 Branch Regions 1 Pre-discovered Areas . | . . . . . . . Known Exits Taken 1 | . . . . 1 . . Unknown Exits Taken 4 | 1 1 1 1 . . . Scrap Searched . | . . . . . . . Spaces Dug . | . . . . . . . Terrain Destroyed 154 | . 1 48 92 . 13 . Melee . | . . . . . . . Projectile 1 | . 1 . . . . . AOE 153 | . . 48 92 . 13 . Terrain Rammed . | . . . . . . . Walls Destroyed . | . . . . . . . Machines Disabled . | . . . . . . . Actions | -11 -10 -9 -9 -8 -8 -8 --------- Run | Scr Mat Mat Min Mat Gar Mat Total 1443 | 171 139 154 224 73 558 124 Wait 152 | 49 9 1 3 17 71 2 Move 1055 | 84 105 127 192 40 398 109 Hop . | . . . . . . . Pick Up 38 | 8 3 3 3 6 10 5 Fast Attach . | . . . . . . . Attach 42 | 9 4 2 4 6 11 6 Detach 7 | 2 1 1 . . 2 1 Swap 9 | . 1 5 3 . . . Drop 10 | 2 . 1 . 4 3 . Fire 99 | 17 12 14 16 . 39 1 Melee . | . . . . . . . Ram 5 | . . . . . 5 . Kick 7 | . 4 . 3 . . . Crush . | . . . . . . . Escape Stasis 19 | . . . . . 19 . Rewire . | . . . . . . . Trap . | . . . . . . . Miscellaneous . | . . . . . . . Route ------- -11/Scrapyard -10/Materials -9/Materials -9/Mines -8/Materials -8/Garrison (discovered 2 exits: *Mat x2) -8/Materials History --------- Turn | Location | Event 6 | -11/Scrapyard | Discovered new exit (range 15) 226 | -11/Scrapyard | Entered Materials 318 | -10/Materials | Build established: Mutant 443 | -10/Materials | Discovered new exit (range 16) 461 | -10/Materials | Entered another Materials area 461 | -9/Materials | Evolved 2 slots: Propulsion x1, Utility x1 647 | -9/Materials | Central database locked down 661 | -9/Materials | Discovered new exit (range 6) 667 | -9/Materials | Entered Mines 728 | -9/Mines | Lost 4 parts (1p2n1u) 847 | -9/Mines | Learned Materials stockpile data 950 | -9/Mines | Discovered new exit (range 3) 961 | -9/Mines | Entered Materials 961 | -8/Materials | Evolved 2 slots: Power x1, Weapon x1 1090 | -8/Materials | Identified exit to Garrison 1097 | -8/Materials | Entered Garrison 1262 | -8/Garrison | System corruption reached 10% 1299 | -8/Garrison | System corruption reached 30% 1355 | -8/Garrison | Garrison Relay disabled 1376 | -8/Garrison | Triggered checkpoint 1440 | -8/Garrison | Triggered checkpoint 1512 | -8/Garrison | Triggered checkpoint 1566 | -8/Garrison | Build established: Scavenger-Mutant 1613 | -8/Garrison | Discovered new exit (range 8) 1624 | -8/Garrison | Attempted to access garrison exit controls, blocked by remote lockdown 1649 | -8/Garrison | Triggered checkpoint 1742 | -8/Garrison | Triggered checkpoint 1788 | -8/Garrison | Triggered checkpoint 1800 | -8/Garrison | Core integrity fell below 50% 1815 | -8/Garrison | Discovered new exit (range 12) 1817 | -8/Garrison | Core integrity fell below 20% 1822 | -8/Garrison | Lost 7 parts (1p2n2u2w) 1822 | -8/Garrison | Entered Materials 1933 | -8/Materials | Destroyed by G-47 Trooper with Particle Gun Last Messages --------------- :H:3&ZP B=#%G%TU,%EBFGKH>DZC2FQH Acquired Hvy. Particle Cannon. Acquired Imp. Signal Interpreter. Relay Coupler [Demolisher] fries itself. Acquired Imp. Signal Interpreter. System corrupted: Energy discharge (-19). Acquired Adv. Treads. System corrupted: Heat flow error (+278). Connecting with Repair Station... Current location identified: Materials System corrupted: Component data lost. O-16 Technician: "IFF HANDSHAKE FAILED. SECURING TERMINAL." O-16 Technician uses terminal to summon reinforcements. ALERT: Hostiles spotted, dispatching reinforcements to Terminal M001. O-16 Technician locks terminal. System corrupted: Heat flow error (+125). K-01 Serf collects debris. C-30 ARC bursts open, deploying its payload. G-50 Soldier unfolds itself. G-47 Trooper unfolds itself. Map ----- +----------------------------------------------------+ | ??????????????????????????????????????#####??????# | | ??????????????????????????????????????? ????# | | ????????????????????????????????????????""""" ### | | ????????????????????????????????????????""""" + | | ????????????????????????????????????????""""" ### | | ?????????????????????????????????????????""""????# | | ?????????????????????????????????????????""??????# | | ?????????????????????????????????????????????????# | | ?????????????????????????????????????????????????# | | ?????????????????????????????????????????????????# | | ????????????????????????????????????#######+###### | | ??????????????????????????????????? | | ??????????????????????????????????? | | ??????????????????????????????????? | | ????????????????????????????????????#########+### | | ????????????????????????????????????????????????# | | ????????????????????????????????????????????????# | | ????????????????????????????????????????????????# | | ????????????????????????????????????????????????# | | ????????????????????????????????????????????????# | | ????????????????????????????????????????????????# | | ????????????????????????????????????????????????# | | ????????????????????????????????????????????????# | | ????????????????????# ??????????????????????????# | | ????????????????????# ######################### | | ????????????????????# @ | | ????????????????????# g | | ????????????????????# %g k | | ????????????????????# #####################+### | | ????????????????????# ????????????????????????# | | ????????????????????# ?????????????????????????# | | ????????????????????# ?????????????????????????# | | ????????????????????# ??????????????????????????# | | ????????????????????#r??????????????????????????# | | ???????????????????? ???????????????????????????# | | ???????????????????? ???????????????????????????# | | ??????????????????? ????????????????????????????# | | ???????????????????#????????????????????????????# | | ????????????????????????????????????????????????? | | ????????????????????????????????????????????????? | | ????????????????????????????????????????????????? | | ?????????????????????????????????????????????????? | | ?????????????????????????????????????????????????? | | ?????????????????????????????????????????????????? | | ?????????????????????????????????????????????????? | | ?????????????????????????????????????????????????? | | ?????????????????????????????????????????????????? | | ?????????????????????????????????????????????????? | | ?????????????????????????????????????????????????? | | ?????????????????????????????????????????????????? | +----------------------------------------------------+ Best States ------------- Heat Dissipation 31 Energy Generation 19 Energy Capacity 250 Matter Stores 300 Matter Capacity 300 Sight Range 16 Terrain Scan Density 10 Armor Coverage 450 Resistance: EX 25 Core Shielding 20 Evasion (%) 55 Recoil Reduction 2 Item Schematics ----------------- None Robot Schematics ------------------ None Fabricated ------------ Nothing Alien Tech Used ----------------- None Achievements -------------- Power Corrupts Z1$+NX3F=JRE3_ZNQR Challenges ------------ None Game ------ Seed BarrageEnhancedChainsword Manual? 0 Play Time 00:38:29 Cumulative 10.4 hours Start 2022.09.11 @ 19:49:44 End 2022.09.11 @ 20:28:46 Sessions 1 Manual Loads 0 Difficulty Rogue Special Mode None Game No. 17 Rogue 17 Adventurer 0 Explorer 0 Win Type - Total 0 Types 0/0/0/0/0/0/0/0/0 Lore% 8 Gallery% 14 Achievement% 12 Wizard Run 0 Options --------- ASCII 0 Keyboard 0 Movement Numpad Keybinds 0 Fullscreen 2 Font 16/Terminus Map View 76x50 Tactical HUD 0 Map Filters NONE Filters NONE Steam 1 RUN: 402b3d1c-568e-4b0d-a594-49e6a545be79